[Event "French-ch U12-U14 2024"]
[Site "Agen"]
[Date "2024.04.17"]
[Round "5.16"]
[White "Negre, Emilie"]
[Black "Auribault, Louis"]
[Result "1-0"]
[ECO "A29"]
[WhiteElo "1922"]
[BlackElo "2137"]
[Annotator "TA"]
[PlyCount "81"]
[EventDate "2024.04.14"]
[EventType "swiss"]
[EventCountry "FRA"]
[SourceTitle "playchess.com"]
[Source "ChessBase"]
[SourceQuality "1"]
[TimeControl "5400+30"]

{[%evp 23,81,0,7,0,0,0,0,0,0,0,0,-73,-40,-57,-48,-54,-4,-48,-56,-71,-67,-56,-9,-4,0,0,0,0,6,0,0,0,302,285,427,434,425,421,527,525,580,585,594,589,724,725,779,768,749,706,29973,29967,5441,1173,4710,1274,1274,1262,1095,1093]} 1. c4 {[%emt 0:00:04]} e5 {[%emt 0:00:07]} 2. g3 {[%emt 0:00:07]} Nf6 {[%emt 0:00:08]} 3. Nc3 {[%emt 0:00:06]} d5 {[%emt 0:00:18]} 4. cxd5 {[%emt 0:00:09]} Nxd5 {[%emt 0:00:06]} 5. Bg2 {[%emt 0:00:08]} Nb6 {[%emt 0:00:59]} 6. Nf3 {[%emt 0:00:15]} Nc6 {[%emt 0:00:14]} 7. O-O {[%emt 0:00:16]} Be7 {[%emt 0:00:24]} 8. a3 {[%emt 0:00:55]} O-O {[%emt 0:00:47]} 9. b4 {[%emt 0:00:14]} Be6 {[%emt 0:00:44]} 10. Rb1 {[%emt 0:02:49]} f6 {[%emt 0:00:59]} 11. d3 {[%emt 0:01:47]} a5 {[%emt 0:01:02]} 12. b5 {[%emt 0:02:23]} Nd4 {[%emt 0:00:55]} 13. e3 {[%emt 0:45:31]} Nxf3+ {[%emt 0:18:03]} 14. Bxf3 {[%emt 0:00:10]} Qc8 {[%emt 0:00:43]} 15. Na4 {[%emt 0:02:53] The position is equal.} Rd8 {[%emt 0:02:49]} 16. Nxb6 {[%emt 0:03:41]} cxb6 {[%emt 0:01:46]} 17. Qe2 {[%emt 0:00:40]} (17. Bb2 $11) 17... Qd7 {[%emt 0:05:56]} 18. Rd1 {[%emt 0:01:46]} Rac8 {[%emt 0:00:52]} 19. a4 {[%emt 0:11:15]} Rc7 {[%emt 0:07:46]} (19... Bb4 $15) 20. d4 {[%emt 0:06:42]} Bc4 $1 {[%emt 0:03:11]} 21. Qb2 {[%emt 0:00:14]} Qf5 {[%emt 0:00:29]} 22. Bg2 {[%emt 0:00:52]} exd4 {[%emt 0:15:50]} (22... Bc5 $15 {should be considered.}) 23. exd4 $11 {[%emt 0:01:24]} Bd5 {[%emt 0:02:35]} 24. Be3 {[%emt 0:07:25]} Bxg2 {[%emt 0:05:53]} 25. Kxg2 {[%emt 0:00:05]} Rdc8 {[%emt 0:07:35]} 26. d5 {[%emt 0:05:13][%cal Od5d6] d6! would now be deadly.} Rc2 {[%emt 0:00:27]} 27. Qd4 {[%emt 0:00:58]} R8c4 $2 {[%emt 0:06:47][%mdl 8192]} (27... R8c3 $11 {and Black stays safe.} 28. Qxb6 (28. g4 $2 Rxf2+ 29. Bxf2 Qf3+ 30. Kg1 Bc5 $19) 28... Re2) 28. Qxb6 $18 {[%emt 0:00:37]} Qd7 {[%emt 0:02:05] [#]} (28... Bc5 {is a better defense.} 29. Qe6+ (29. Qxa5 Rxf2+ 30. Bxf2 Qxf2+ 31. Kh3 g5 32. Qd8+ Bf8) 29... Qxe6 30. dxe6 Kf8) 29. Qe6+ $1 {[%emt 0:01:34]} ({Inferior is} 29. Qxa5 Rh4 30. Qa8+ (30. gxh4 Qg4+ 31. Kh1 Qe4+ 32. Kg1 Qg4+ 33. Kf1 Qe2+ 34. Kg1 Qg4+ 35. Kf1 Qe2+ 36. Kg1 Qg4+ $11) 30... Kf7 $11 (30... Rc8 31. Qa7 $11)) 29... Qxe6 {[%emt 0:00:14]} 30. dxe6 {[%emt 0:00:04]} Kf8 {[%emt 0:04:35]} 31. Rd7 {[%emt 0:01:33]} Re4 {[%emt 0:00:14] [#]} 32. Rxb7 $1 {[%emt 0:00:17]} Rxe6 {[%emt 0:00:31]} 33. Kf3 {[%emt 0:02:07]} Rc4 {[%emt 0:02:21]} 34. Ra7 {[%emt 0:00:20]} Rxa4 {[%emt 0:02:27]} 35. b6 {[%emt 0:00:11] b7 is the strong threat.} Bd6 {[%emt 0:04:05]} 36. b7 {[%emt 0:01:12]} Ra3 {[%emt 0:01:21]} 37. b8=Q+ {[%emt 0:03:03]} Bxb8 {[%emt 0:00:10]} 38. Rxb8+ {[%emt 0:00:00] White is clearly winning.} Re8 {[%emt 0:00:04]} 39. Rxe8+ {[%emt 0:00:00]} (39. Rbb7 $142 g6 40. Rxh7) 39... Kxe8 {[%emt 0:00:06]} 40. Rxg7 {[%emt 0:00:00]} h5 {[%emt 0:00:15]} 41. Rh7 {[%emt 0:00:00] Weighted Error Value: White=0.09 (flawless) /Black=0.63.  Loses game:     	---       	Black=1      Mistake:       	White=1     	Black=3      Inaccurate:     	White=1     	Black=1      OK:         	White=9     	Black=4      Best:        	White=1     	Black=2      Strong:       	White=1     	Black=1} 1-0

[Event "French-ch U12-U14 2024"]
[Site "Agen"]
[Date "2024.04.17"]
[Round "5.17"]
[White "Pon Le Brun, Gregoire"]
[Black "Charlier, Antoine"]
[Result "1-0"]
[ECO "C71"]
[WhiteElo "1900"]
[BlackElo "2053"]
[Annotator "TA"]
[PlyCount "105"]
[EventDate "2024.04.14"]
[EventType "swiss"]
[EventCountry "FRA"]
[SourceTitle "playchess.com"]
[Source "ChessBase"]
[SourceQuality "1"]
[TimeControl "5400+30"]

{[%evp 9,105,15,25,0,3,15,38,20,90,73,82,87,102,101,92,63,118,44,48,39,77,77,114,109,119,106,119,85,104,108,132,125,152,138,166,156,177,162,162,166,200,188,207,207,198,195,197,158,179,161,181,176,191,183,185,180,255,253,348,339,554,525,683,612,562,505,5085,1954,5531,5073,29956,29964,29966,29966,29980,5189,29981,29982,29985,29986,29986,29987,29988,29985,29985,29986,29986,29985,29986,29987,29987,29986,29986,29987,29987,29988,29989,29990]} 1. e4 {[%emt 0:00:04]} e5 {[%emt 0:00:16]} 2. Nf3 {[%emt 0:01:07]} Nc6 {[%emt 0:00:35]} 3. Bb5 {[%emt 0:00:49]} a6 {[%emt 0:00:30]} 4. Ba4 {[%emt 0:00:46]} d6 {[%emt 0:00:59]} 5. c4 {[%emt 0:05:46]} Bd7 {[%emt 0:07:17]} 6. Bxc6 {[%emt 0:03:55]} bxc6 {[%emt 0:02:49]} 7. d4 {[%emt 0:03:45]} f6 {[%emt 0:05:49]} 8. Nc3 {[%emt 0:09:35][%cal Oc4c5] White is slightly better.} Be7 {[%emt 0:12:47]} (8... Ne7 $11) 9. h3 {[%emt 0:07:38]} c5 {[%emt 0:04:56]} 10. dxc5 {[%emt 0:07:52]} dxc5 {[%emt 0:00:07]} 11. Be3 {[%emt 0:00:50]} Bd6 {[%emt 0:04:06]} 12. O-O {[%emt 0:15:43] White has more active pieces. The black rooks are passive.} Qb8 {[%emt 0:05:24]} (12... Ne7 $14) 13. Qd3 {[%emt 0:09:50]} (13. Rb1 $16) 13... Ne7 $1 $14 {[%emt 0:01:44][%cal Oe7c6]} 14. Rfd1 {[%emt 0:02:10][%cal Oe3c5] Black must now prevent Bxc5!} Bc6 {[%emt 0:04:44][%cal Oe8g8]} 15. Nd5 {[%emt 0:03:07] Black is now going downhill.} Nxd5 {[%emt 0:07:33]} 16. cxd5 {[%emt 0:00:30]} Bd7 {[%emt 0:00:29]} 17. Nd2 {[%emt 0:02:17]} O-O {[%emt 0:14:12]} 18. Rdc1 {[%emt 0:02:12]} f5 {[%emt 0:04:52]} 19. b3 {[%emt 0:07:41]} (19. Bxc5 Qxb2 20. Nc4 (20. Rab1 Qxa2 21. Qe3 fxe4 $14) 20... fxe4 $16) (19. Bxc5 {is more complex.} Qxb2 20. Nc4 fxe4 21. Qd1) 19... fxe4 {[%emt 0:03:17]} 20. Nxe4 {[%emt 0:01:41]} Bf5 {[%emt 0:04:46]} 21. Rc4 {[%emt 0:01:42]} Qb7 {[%emt 0:02:39]} 22. Rd1 {[%emt 0:03:06]} Rad8 {[%emt 0:00:43]} 23. Qc3 {[%emt 0:01:35]} Bxe4 {[%emt 0:03:53]} 24. Rxe4 {[%emt 0:00:03]} c6 {[%emt 0:00:13]} 25. Qc4 {[%emt 0:06:28] [#] Bg5 is the strong threat.} (25. Bxc5 cxd5 26. Rxe5 Bxe5 (26... Qc7 27. Rdxd5 Bxe5 28. Qxe5 $15) 27. Qxe5 Rfe8 $15) 25... Kh8 {[%emt 0:01:30]} 26. dxc6 {[%emt 0:01:00]} Qxc6 {[%emt 0:00:06]} 27. Rd5 {[%emt 0:00:23]} h6 {[%emt 0:03:09]} 28. g3 {[%emt 0:02:21]} Qc8 {[%emt 0:03:58]} 29. Kh2 {[%emt 0:00:31]} (29. Bxc5 Bxc5 30. Rxc5 (30. Qxc5 $2 Rxd5 31. Qxc8 Rxc8 $19) 30... Rd1+ (30... Qxh3 31. Qe2 $16) 31. Kg2 Rxf2+ 32. Kxf2 Qf8+ 33. Ke2 Qf1+ 34. Ke3 Re1+ 35. Kd2 Rd1+ 36. Ke3 Re1+ 37. Kd2 Qf2+ 38. Re2 Rxe2+ 39. Qxe2 Qxc5 $11) 29... Qf5 {[%emt 0:00:42]} 30. Rg4 {[%emt 0:00:31][%cal Be4g4,Bg4g6,Bg6a6][%mdl 32]} (30. Bxc5 $2 Bxc5 31. f4 Rxd5 32. Qxd5 exf4 33. Qxf5 Rxf5 $19) 30... Be7 {[%emt 0:00:41]} 31. Rxd8 {[%emt 0:00:31]} (31. Bxc5 $2 Bxc5 $19 (31... Rxd5 32. Qxd5 Bxc5 33. Qxc5 $15) (31... Rxd5 32. Qxd5 Bxc5 33. Qxc5 $15)) 31... Rxd8 {[%emt 0:00:07]} 32. Qe4 {[%emt 0:00:07]} (32. Bxc5 $2 Qf3 (32... Rc8 $2 33. Qe2 $19) 33. Qe4 (33. Bxe7 $2 Qxf2+ 34. Kh1 Rd1+) 33... Qxe4 34. Rxe4 Bxc5 $19) (32. Qxa6 Bg5 33. Qe2 (33. Bxc5 e4 $11) 33... Bxe3 34. Qxe3 Qc2) 32... Qf6 {[%emt 0:01:00]} (32... Qxe4 $142 33. Rxe4 Kg8) 33. Rg6 $18 {[%emt 0:00:16]} Qf7 {[%emt 0:00:23]} 34. Rxa6 {[%emt 0:00:11]} Bg5 $2 {[%emt 0:00:36] [#]} (34... Qd5 {keeps fighting.} 35. Qxd5 Rxd5) 35. Ra8 {[%emt 0:00:35]} (35. Qxe5 Re8 $16) 35... Qf6 {[%emt 0:00:36]} 36. Rxd8+ {[%emt 0:00:17]} Qxd8 {[%emt 0:00:00]} 37. Qxe5 {[%emt 0:00:23]} Qa5 {[%emt 0:00:43]} (37... Bxe3 $142 38. Qxe3 Qf8) 38. Qxc5 {[%emt 0:00:27]} Qxa2 {[%emt 0:00:02]} 39. Bxg5 {[%emt 0:00:13]} hxg5 {[%emt 0:00:32][%mdl 4096] Endgame. KQ-KQ} 40. b4 {[%emt 0:00:17][%cal Bb3b4,Bb4b5,Bb5b6,Bb6b7][%mdl 32]} Qb2 {[%emt 0:00:01]} 41. b5 {[%emt 0:00:22]} (41. Qxg5 Qxf2+ 42. Kh1 Qf1+ 43. Kh2 Qf2+ 44. Kh1 Qf1+ 45. Kh2 Qe2+ 46. Kh1 Qe4+ 47. Kg1 Qd4+ 48. Kg2 Qxb4 $11) 41... Kh7 {[%emt 0:00:09]} 42. Kg2 {[%emt 0:00:23]} ({Inferior is} 42. Qxg5 Qxf2+ 43. Kh1 Qf1+ 44. Kh2 Qf2+ 45. Kh1 Qf1+ 46. Kh2 Qf2+ $11) (42. b6 $142 Qb1 43. Qc6 (43. Qxg5 Qxb6 44. Qh5+ Kg8 $18) 43... Qa2 44. Kg2 Qa6 45. Qc2+ Kg8 46. Qb3+ Kh7 47. b7 Qc6+ 48. Kg1) 42... Qb1 {[%emt 0:00:28]} 43. Qc6 {[%emt 0:00:44] White mates.} Qb4 {[%emt 0:00:24]} 44. b6 {[%emt 0:00:25]} Qb1 {[%emt 0:00:07]} 45. b7 {[%emt 0:01:17]} Qb4 {[%emt 0:00:05]} 46. Qf3 {[%emt 0:01:20]} Qb5 {[%emt 0:00:48]} 47. Qe4+ {[%emt 0:00:30]} Kh8 {[%emt 0:00:18]} 48. h4 {[%emt 0:00:41]} g4 {[%emt 0:00:17]} 49. Kg1 {[%emt 0:00:31]} Kg8 {[%emt 0:00:49]} 50. Qe7 {[%emt 0:00:27]} ({Less strong is} 50. Qxg4 Qxb7 51. Qc4+ Kh7 52. Qd3+ Kh6 53. Qe3+ Kh7 $18) 50... Kh7 {[%emt 0:00:28]} 51. Qc7 {[%emt 0:00:22]} Qb1+ {[%emt 0:00:11]} 52. Kh2 {[%emt 0:00:28]} Qf5 {[%emt 0:00:49]} 53. Qb6 {[%emt 0:00:16] Weighted Error Value: White=0.15 (very precise) /Black=0.59.  Mistake:       	White=1     	Black=4      Inaccurate:     	White=1     	Black=5      OK:         	White=11    	Black=3      Best:        	White=2     	---        Strong:       	---       	Black=1} ({Worse is} 53. b8=B Qxf2+ 54. Kh1 Qf1+ 55. Kh2 Qf2+ 56. Kh1 Qf1+ 57. Kh2 Qf2+ $11) 1-0

[Event "French-ch U12-U14 2024"]
[Site "Agen"]
[Date "2024.04.17"]
[Round "5.18"]
[White "El Zein, Zayne-Eddine"]
[Black "Boulos, Paul"]
[Result "1/2-1/2"]
[ECO "A14"]
[WhiteElo "1959"]
[BlackElo "2189"]
[Annotator "TA"]
[PlyCount "58"]
[EventDate "2024.04.14"]
[EventType "swiss"]
[EventCountry "FRA"]
[SourceTitle "playchess.com"]
[Source "ChessBase"]
[SourceQuality "1"]
[TimeControl "5400+30"]

{[%evp 13,58,20,11,8,21,2,47,-13,-12,-21,41,42,43,17,25,0,-3,0,0,-3,97,102,94,101,81,99,91,101,99,99,111,105,100,67,129,129,125,122,122,127,133,126,127,136,143,107,109]} 1. c4 {[%emt 0:00:07]} e6 {[%emt 0:00:39]} 2. g3 {[%emt 0:00:31]} d5 {[%emt 0:00:12]} 3. Bg2 {[%emt 0:00:39]} Nf6 {[%emt 0:00:36]} 4. Nf3 {[%emt 0:00:54]} Be7 {[%emt 0:00:11]} 5. O-O {[%emt 0:00:28]} O-O {[%emt 0:00:09]} 6. b3 {[%emt 0:01:14]} a5 {[%emt 0:00:43]} 7. Bb2 {[%emt 0:05:48]} a4 {[%emt 0:03:01]} 8. d4 {[%emt 0:03:57]} c6 {[%emt 0:01:21]} 9. c5 {[%emt 0:03:14]} Na6 {[%emt 0:10:44]} 10. bxa4 {[%emt 0:15:00]} (10. Nc3 $14) 10... b6 {[%emt 0:03:14]} 11. Ne5 {[%emt 0:01:06][%cal Bf3e5,Be5d3,Bd3f4][%mdl 32]} Qc7 {[%emt 0:03:56]} (11... Nb8 $11) 12. cxb6 $14 {[%emt 0:04:45]} Qxb6 {[%emt 0:00:36]} 13. Bc3 {[%emt 0:00:58]} Nd7 {[%emt 0:10:07]} 14. Nd3 {[%emt 0:07:43]} c5 {[%emt 0:01:58]} 15. e3 {[%emt 0:03:43]} c4 {[%emt 0:09:29]} 16. Nf4 {[%emt 0:07:23]} Nb4 {[%emt 0:13:33]} (16... Nf6 $11) 17. Nd2 $16 {[%emt 0:03:56] [#] Black must now prevent Rb1.} Qa7 {[%emt 0:05:17]} 18. a3 {[%emt 0:13:35]} Nd3 {[%emt 0:13:52]} 19. Nxd3 {[%emt 0:02:55]} cxd3 {[%emt 0:00:08]} 20. Bb4 {[%emt 0:00:31]} Re8 {[%emt 0:01:28]} 21. a5 {[%emt 0:01:33]} Bd8 {[%emt 0:02:48]} 22. Nb3 {[%emt 0:02:21][%cal Of1e1]} Ba6 {[%emt 0:01:03]} 23. Rc1 {[%emt 0:02:24]} Bc4 {[%emt 0:03:03] [#]} ({Black should try} 23... Rb8 $14) 24. Rxc4 $1 {[%emt 0:01:09]} dxc4 {[%emt 0:00:35]} 25. Bxa8 {[%emt 0:00:08]} Qxa8 {[%emt 0:00:36]} 26. Nd2 {[%emt 0:00:21] Hoping for Qa4.} Bxa5 {[%emt 0:03:21]} 27. Nxc4 {[%emt 0:01:02]} Bxb4 {[%emt 0:01:27]} 28. axb4 {[%emt 0:00:16]} Rb8 {[%emt 0:02:03]} 29. Qxd3 {[%emt 0:02:31]} Rxb4 {[%emt 0:00:42] Weighted Error Value: White=0.12 (very precise) /Black=0.19 (very precise) .  Mistake:       	White=1     	Black=3      Inaccurate:     	White=3     	Black=1      OK:         	White=8     	Black=7      Best:        	White=4     	Black=2      Strong:       	White=1     	---} 1/2-1/2

[Event "French-ch U12-U14 2024"]
[Site "Agen"]
[Date "2024.04.17"]
[Round "5.19"]
[White "Tureshbayev, Anuar"]
[Black "Mimoune, Kenzi"]
[Result "1/2-1/2"]
[ECO "B90"]
[WhiteElo "2025"]
[BlackElo "1980"]
[Annotator "TA"]
[PlyCount "98"]
[EventDate "2024.04.14"]
[EventType "swiss"]
[EventCountry "FRA"]
[SourceTitle "playchess.com"]
[Source "ChessBase"]
[SourceQuality "1"]
[TimeControl "5400+30"]

{[%evp 11,98,12,9,0,4,0,0,0,26,18,27,26,79,15,106,-56,-50,-54,-45,-60,-56,-67,-54,-59,-29,-22,0,-39,-42,-38,-27,-29,0,0,0,-20,-29,-33,-9,-23,-19,-21,55,60,452,464,524,101,72,0,0,-190,-225,-199,-191,-182,-211,-229,-172,-166,-66,-181,-166,-167,-145,-187,0,-112,0,-147,-85,-129,-132,-137,0,0,0,-97,-27,-16,-3,-3,0,-7,-7,-8,-8,-8,-8]} 1. e4 {[%emt 0:00:01]} c5 {[%emt 0:00:08]} 2. Nf3 {[%emt 0:00:03]} d6 {[%emt 0:00:06]} 3. d4 {[%emt 0:00:03]} cxd4 {[%emt 0:00:05]} 4. Nxd4 {[%emt 0:00:03]} Nf6 {[%emt 0:00:09]} 5. Nc3 {[%emt 0:00:05]} a6 {[%emt 0:00:06]} 6. h3 {[%emt 0:00:03]} e5 {[%emt 0:00:18]} 7. Nf3 {[%emt 0:00:03]} Be7 {[%emt 0:01:32]} 8. g4 {[%emt 0:00:16]} h6 {[%emt 0:00:42]} 9. Rg1 {[%emt 0:00:27]} Nbd7 {[%emt 0:04:06]} 10. g5 {[%emt 0:02:43]} hxg5 {[%emt 0:00:26]} 11. Nxg5 {[%emt 0:00:10]} Nb6 {[%emt 0:09:39] Prevents Bc4.} (11... Nc5 $11) 12. Be3 {[%emt 0:02:54]} (12. a4 $16) 12... d5 {[%emt 0:13:41]} (12... Bd7 $1 $11 {remains equal.}) 13. Bxb6 $2 {[%emt 0:05:41]} (13. exd5 $1 $16 {Hoping for Qf3.} Nbxd5 14. Bc4 Nxe3 15. Bxf7+ Kf8 16. Qxd8+ (16. fxe3 Qb6 $14) 16... Bxd8 17. fxe3) 13... Qxb6 $15 {[%emt 0:00:06]} 14. Nxd5 {[%emt 0:00:06]} Nxd5 {[%emt 0:01:04]} (14... Qxb2 15. Rb1 (15. Nc7+ Kf8 $14) 15... Qxa2 16. Nc7+ Kf8 17. Nxa8 $14) 15. Qxd5 {[%emt 0:01:12]} Bxg5 {[%emt 0:00:55]} 16. Rxg5 {[%emt 0:00:16]} Be6 $1 {[%emt 0:01:02]} 17. Qd3 {[%emt 0:05:09]} (17. Qxe5 $2 f6 18. Rh5 fxe5 $19) (17. Rxe5 O-O 18. Qd1 Qxb2 $19) 17... Rd8 {[%emt 0:10:27][%mdl 1024] Black has compensation.} 18. Qa3 {[%emt 0:03:14]} g6 {[%emt 0:18:12]} 19. Rg3 {[%emt 1:17:31]} Rh4 {[%emt 0:11:45]} 20. Re3 {[%emt 0:00:00]} Rd4 {[%emt 0:09:11]} 21. Bg2 {[%emt 0:00:00]} Qc6 {[%emt 0:01:14]} 22. Qc3 $1 {[%emt 0:00:00]} Qd7 {[%emt 0:06:49]} 23. Kf1 {[%emt 0:00:00]} Rc4 {[%emt 0:00:34]} 24. Qxe5 {[%emt 0:00:00]} Rxc2 {[%emt 0:00:34]} 25. Kg1 {[%emt 0:00:00]} Rh5 $36 {[%emt 0:00:47][%mdl 2048] Black fights for an advantage.} 26. Qg3 {[%emt 0:00:00]} Rxb2 {[%emt 0:02:53]} (26... Qd4 $11) 27. Rd3 $14 {[%emt 0:00:00]} Qc6 {[%emt 0:03:12][%mdl 8192]} (27... Rg5 $1 $14 28. Qb8+ Qc8) 28. Rad1 $1 $18 {[%emt 0:00:00]} Kf8 {[%emt 0:00:24][%cal Oc6c5]} 29. Rd8+ $2 {[%emt 0:00:00]} (29. Bf3 $18 {is more deadly.} Rbb5 30. e5) 29... Kg7 $16 {[%emt 0:00:02][%cal Oc6c5]} 30. Qa3 {[%emt 0:00:00]} (30. Bf3 $16 Rbb5 31. Bxh5 Rxh5 32. Qe3) 30... Qc2 $1 $11 {[%emt 0:01:08]} 31. R8d2 {[%emt 0:00:00]} Rxa2 $19 {[%emt 0:01:01]} 32. Qg3 {[%emt 0:00:00]} Qc5 {[%emt 0:00:44]} (32... Qxd2 $2 {perishes.} 33. Rxd2 Rxd2 34. Qc3+ Kh7 35. Qxd2 $18) 33. Rxa2 {[%emt 0:00:00]} Bxa2 {[%emt 0:00:02]} 34. Kh1 {[%emt 0:00:00]} Be6 {[%emt 0:01:33]} 35. f4 {[%emt 0:00:00]} Qc2 {[%emt 0:01:18]} (35... Qc7 $1 $19 36. Qf3 Bd7) 36. Re1 {[%emt 0:00:00]} (36. Rd6 $15) 36... Qb3 {[%emt 0:00:26]} 37. Re3 {[%emt 0:00:00]} Qd1+ {[%emt 0:00:14]} 38. Re1 {[%emt 0:00:00]} Qb3 {[%emt 0:00:13]} (38... Qg4 $19 39. Qc3+ Kh7) 39. Re3 $17 {[%emt 0:00:00]} Qd1+ {[%emt 0:00:12]} ({Black should try} 39... Qb2 $17 40. f5 Bd7) 40. Kh2 {[%emt 0:00:00]} (40. Re1 $11 {was the only way to keep the balance.} Qg4 41. Qxg4 Bxg4 42. Kh2) 40... Qg4 {[%emt 0:01:00]} (40... Qd6 $142 41. Rd3 Qb8) 41. Qf2 {[%emt 0:00:00][%cal Of4f5]} Qh4 $1 {[%emt 0:00:18]} 42. Rg3 {[%emt 0:00:00] [#]} Qe7 {[%emt 0:00:39]} (42... b5 $1 $17 {Threatens to win with ...Kh7.} 43. f5 Bc4) 43. f5 $1 $11 {[%emt 0:00:00][%cal Og2f3]} Bd7 {[%emt 0:00:09] ...Bc6 would now be deadly.} 44. fxg6 {[%emt 0:00:00] [#]} (44. Bf3 $11 Rh6 45. Qb2+ Kf8 46. fxg6) 44... fxg6 {[%emt 0:00:22]} (44... f6 $1 $17 {Strongly threatening ...Qe5.} 45. Qb6 Bc6) 45. Qb2+ {[%emt 0:00:00]} Re5 {[%emt 0:01:17] The position is equal.} 46. Qxb7 {[%emt 0:00:00]} Bb5 {[%emt 0:00:07]} 47. Qb6 {[%emt 0:00:00]} Re6 {[%emt 0:00:44]} 48. Qd4+ {[%emt 0:00:14]} Qf6 {[%emt 0:00:06]} 49. Qe3 {[%emt 0:00:42]} Qe5 {[%emt 0:00:17] White happily takes the draw.   Weighted Error Value: White=0.40/Black=0.45.  Loses game:     	White=1     	Black=1      Missed win:     	White=1     	---        Mistake:       	White=6     	Black=9      Inaccurate:     	White=2     	Black=3      OK:         	White=15    	Black=14     Best:        	White=3     	Black=3      Strong:       	White=3     	Black=3} 1/2-1/2

[Event "French-ch U12-U14 2024"]
[Site "Agen"]
[Date "2024.04.17"]
[Round "5.20"]
[White "Spinosi, Aurelien"]
[Black "Laignel, Quentin"]
[Result "0-1"]
[ECO "B10"]
[WhiteElo "1942"]
[BlackElo "2023"]
[Annotator "TA"]
[PlyCount "90"]
[EventDate "2024.04.14"]
[EventType "swiss"]
[EventCountry "FRA"]
[SourceTitle "playchess.com"]
[Source "ChessBase"]
[SourceQuality "1"]
[TimeControl "5400+30"]

{[%evp 9,90,-1,0,-22,-29,-112,-105,-104,-106,-113,-70,-78,-70,-68,-90,-181,-109,-140,-118,-158,-131,-134,-127,-136,-122,-160,-154,-154,-106,-117,-110,-94,-71,-74,-68,-96,-103,-102,-92,-85,-91,-112,-96,-110,-100,-106,-83,-166,-170,-174,-176,-155,-131,-164,-175,-174,-173,-213,-191,-260,-266,-1708,-1898,-1411,-1307,-29965,-29967,-29968,-29968,-29968,-29969,-29974,-29975,-29975,-29976,-29977,-29977,-29978,-29976,-29978,-29979,-29981,-29979]} 1. e4 {[%emt 0:00:07]} c6 {[%emt 0:00:31]} 2. Nf3 {[%emt 0:00:09]} d5 {[%emt 0:00:39]} 3. d3 {[%emt 0:00:15]} Qc7 {[%emt 0:04:36]} 4. e5 {[%emt 0:09:21]} Bg4 {[%emt 0:07:14]} 5. d4 {[%emt 0:02:55]} e6 {[%emt 0:03:40]} 6. c4 {[%emt 0:05:10]} Ne7 {[%emt 0:05:08]} 7. h3 {[%emt 0:01:34]} (7. Be3 $11) 7... Bxf3 $1 $17 {[%emt 0:07:16]} 8. Qxf3 {[%emt 0:02:22] Black is better.} Nf5 $1 {[%emt 0:02:16]} 9. Qc3 {[%emt 0:04:41]} dxc4 {[%emt 0:04:59]} 10. Bxc4 {[%emt 0:23:50]} Qb6 $1 {[%emt 0:05:01][%cal Of8b4] Threatens to win with ...Bb4!} 11. O-O {[%emt 0:00:33]} Qxd4 {[%emt 0:02:33]} 12. a4 {[%emt 0:18:46]} (12. g4 $17 Nh4 13. Qxd4 Nf3+ 14. Kg2 Nxd4 15. Nc3) 12... Qxc3 {[%emt 0:04:02]} ({Black should play} 12... Nd7 $19 13. Re1 a5) 13. Nxc3 {[%emt 0:01:20]} Nd7 {[%emt 0:04:58]} 14. f4 {[%emt 0:02:12]} Bc5+ {[%emt 0:09:56]} 15. Kh2 {[%emt 0:00:25]} h5 {[%emt 0:00:15]} 16. Ne4 {[%emt 0:01:09]} Bb4 {[%emt 0:01:02]} 17. Bd2 {[%emt 0:02:38]} Bxd2 {[%emt 0:03:37]} 18. Nxd2 {[%emt 0:00:15]} Nc5 {[%emt 0:01:41] Against Bd3. Excellent horsemanship.} (18... Nb6 $142 {White must now prevent ...0-0-0.} 19. Rfc1 Rd8) 19. b4 {[%emt 0:01:02]} Rd8 {[%emt 0:01:18]} 20. Rfd1 {[%emt 0:06:00]} Nd3 {[%emt 0:01:45] Black is more active.} 21. Bxd3 {[%emt 0:01:40]} Rxd3 {[%emt 0:00:10]} 22. Nc4 {[%emt 0:00:38] Wards off Ne3} Rxd1 {[%emt 0:05:23]} 23. Rxd1 {[%emt 0:00:16][%mdl 4096] Endgame. KRN-KRN} Ke7 {[%emt 0:01:39]} 24. Na5 {[%emt 0:01:30] [#]} Rb8 $1 {[%emt 0:00:18]} 25. Rd3 {[%emt 0:02:10]} h4 {[%emt 0:03:30]} 26. Kg1 {[%emt 0:00:36]} Ke8 {[%emt 0:01:27]} 27. Kf2 {[%emt 0:00:56]} Ne7 {[%emt 0:00:33]} 28. Nc4 {[%emt 0:01:47]} (28. b5 $17) 28... Nd5 $19 {[%emt 0:01:51]} 29. Nd6+ {[%emt 0:01:09]} Ke7 {[%emt 0:00:29]} 30. Rd4 {[%emt 0:00:28]} f5 {[%emt 0:06:48]} 31. g3 {[%emt 0:02:35]} hxg3+ {[%emt 0:00:20]} 32. Kxg3 {[%emt 0:00:27] [#]} Nc3 $1 {[%emt 0:00:49]} 33. Rc4 {[%emt 0:00:57]} Nxa4 {[%emt 0:01:12]} 34. b5 {[%emt 0:00:45]} (34. h4 {was called for.}) 34... Nb6 {[%emt 0:01:28]} 35. bxc6 $2 {[%emt 0:03:59]} (35. Rc5) 35... Nxc4 {[%emt 0:01:42]} 36. c7 {[%emt 0:00:07]} Ra8 {[%emt 0:00:35]} 37. c8=Q {[%emt 0:00:32]} Rxc8 {[%emt 0:00:04] Black mates.} 38. Nxc8+ {[%emt 0:00:08] KN-KN} Kd7 {[%emt 0:00:12]} 39. Nxa7 {[%emt 0:00:08]} Na3 {[%emt 0:00:08]} 40. Kh4 {[%emt 0:02:21]} b5 {[%emt 0:00:09]} 41. Nxb5 {[%emt 0:00:10]} Nxb5 {[%emt 0:00:06]} 42. Kg5 {[%emt 0:00:20]} Ke7 {[%emt 0:00:20]} 43. Kg6 {[%emt 0:00:09]} Kf8 {[%emt 0:00:11]} 44. h4 {[%emt 0:00:20]} Nd4 {[%emt 0:00:13]} 45. h5 {[%emt 0:01:30]} Ne2 {[%emt 0:00:14] Weighted Error Value: White=0.49/Black=0.08 (flawless) .  Mistake:       	White=5     	Black=2      Inaccurate:     	White=3     	Black=1      OK:         	White=5     	Black=11     Best:        	White=4     	Black=4      Strong:       	---       	Black=4} 0-1